bitfinex/quotes_SOLUSD_20240909
["timestamp","ask_amount","ask_price","bid_price","bid_amount"]
[1725896344124,23.786,128.69,128.65,7.7727]
[1725896344496,25.1378857,128.69,128.64,27.2066]
[1725896344906,25.1378857,128.69,128.65,7.7728]
[1725896345220,25.1378857,128.69,128.64,27.2066]
[1725896346510,45.0,128.68,128.64,27.2066]
[1725896347113,45.0,128.68,128.65,7.7728]
[1725896347633,45.0,128.68,128.64,27.2066]
[1725896349411,7.7723,128.67,128.61,19.4375]
[1725896349623,45.0,128.66,128.64,7.7736]
[1725896349914,1.3518857,128.69,128.65,19.4322]
[1725896350119,66.3742,128.72,128.66,7.7719]
[1725896350120,7.77,128.7,128.66,7.7719]
[1725896350421,9.12166572,128.7,128.66,7.7719]
[1725896350792,51.35166572,128.7,128.65,27.2051]
[1725896351002,7.7708,128.69,128.65,19.4322]
[1725896351314,45.0,128.68,128.65,27.2051]
[1725896351496,52.7714,128.68,128.62,19.4357]
[1725896351924,52.7714,128.68,128.63,7.774]
[1725896352222,7.7718,128.67,128.62,27.2103]
[1725896352518,45.0,128.66,128.62,27.2103]
[1725896352700,45.0,128.66,128.63,7.7741]
[1725896353219,45.0,128.66,128.65,7.773]
[1725896359826,45.0,128.66,128.64,27.2069]
[1725896360340,45.0,128.67,128.65,7.773]
[1725896360636,45.0,128.67,128.64,27.207]
[1725896361723,52.7719,128.67,128.64,19.4336]
[1725896361926,45.0,128.67,128.64,27.2071]
[1725896362724,52.7719,128.67,128.64,19.4336]
[1725896362930,7.7725,128.66,128.62,7.7747]
[1725896363149,45.0,128.65,128.62,7.7747]
[1725896363324,52.7719,128.67,128.63,7.7741]
[1725896366127,7.7724,128.66,128.62,7.7746]
[1725896366455,45.0,128.65,128.62,7.7746]
[1725896367137,45.0,128.66,128.63,7.7741]
[1725896368148,45.0,128.66,128.64,7.7735]
[1725896368326,45.0,128.67,128.64,7.7735]
[1725896369345,52.7718,128.67,128.63,27.2093]
[1725896369726,7.7724,128.66,128.63,27.2093]
[1725896369928,45.0,128.65,128.63,27.2093]
[1725896370454,45.0,128.66,128.6,35.5755]
[1725896370659,9.1258582,128.66,128.62,7.7747]
[1725896370950,52.7732,128.65,128.61,7.7753]
[1725896372352,7.7739,128.64,128.6,27.2148]
[1725896372538,52.7742,128.63,128.6,27.2148]
[1725896372736,7.7742,128.63,128.6,27.2148]
[1725896372952,45.0,128.62,128.6,27.2148]
[1725896373426,52.7742,128.63,128.6,19.372825]
[1725896373857,45.0,128.63,128.58,7.7771]
[1725896374030,45.0,128.64,128.59,19.4414]
[1725896374235,45.0,128.64,128.57,15.51457985]
[1725896374455,45.0,128.65,128.59,13.95944645]
[1725896374662,45.0,128.65,128.62,7.7748]
[1725896375162,46.3530582,128.66,128.62,7.7748]
[1725896377357,54.1255582,128.66,128.62,7.7748]
[1725896378353,1.3530582,128.66,128.63,7.7738]
[1725896378733,1.3530582,128.66,128.64,7.7735]
[1725896380566,1.3530582,128.66,128.65,7.773]
[1725896381859,45.0,128.67,128.66,7.7724]
[1725896382873,1.35292282,128.69,128.65,19.4325]
[1725896383249,1.35292282,128.69,128.67,19.4294]
[1725896383443,1.35292282,128.69,128.68,7.7712]
[1725896383661,15.9157,128.72,128.69,7.7704]
[1725896383859,79.97937863,128.73,128.69,7.7704]
[1725896384077,20.02177541,128.72,128.7,7.7699]
[1725896384270,20.02177541,128.72,128.71,7.7694]
[1725896384452,0.8363624,128.73,128.71,7.7694]
[1725896384777,0.8363624,128.73,128.7,7.7698]
[1725896385348,0.8363624,128.73,128.71,7.7693]
[1725896385548,0.8363624,128.73,128.7,7.7697]
[1725896386279,0.8363624,128.73,128.71,7.7693]
[1725896387778,0.8363624,128.73,128.7,7.7698]
[1725896387956,0.8363624,128.73,128.71,7.7692]
[1725896390574,0.8363624,128.73,128.72,7.7688]
[1725896390775,0.8363624,128.73,128.71,27.1922]
[1725896391156,0.8363624,128.73,128.72,7.7688]
[1725896391863,0.8363624,128.73,128.72,9.32241745]
[1725896392173,0.8363624,128.73,128.72,7.7688]
[1725896396279,0.8363624,128.73,128.72,9.32233661]
[1725896402076,0.8363624,128.73,128.72,7.7688]
[1725896405181,0.8363624,128.73,128.72,9.32202245]
[1725896405587,0.8363624,128.73,128.72,7.7688]
[1725896405889,0.8363624,128.73,128.72,9.32198069]
[1725896406090,0.8363624,128.73,128.72,7.7688]
[1725896412216,0.8363624,128.73,128.72,9.3220228]
[1725896412382,0.8363624,128.73,128.72,7.7688]
[1725896413102,0.8363624,128.73,128.72,21.72824645]
[1725896415011,0.8363624,128.73,128.72,7.7688]
[1725896415513,0.8363624,128.73,128.72,21.72824645]
[1725896415885,0.8363624,128.73,128.72,23.28135029]
[1725896416081,0.8363624,128.73,128.72,21.72824645]
[1725896418122,1.35271881,128.79,128.72,21.72824645]
[1725896418123,1.35271881,128.79,128.78,27.178]
[1725896418286,16.1927,128.81,128.8,7.7639]
[1725896419232,15.5546752,128.84,128.81,7.7633]
[1725896419233,23.1860752,128.84,128.81,7.7633]
[1725896420614,23.1860752,128.84,128.8,19.4096]
[1725896420822,7.7622,128.83,128.8,19.4096]
[1725896421208,30.9478752,128.84,128.8,19.4096]
[1725896421423,45.0,128.83,128.8,27.1732]
[1725896423114,52.7623,128.83,128.8,19.4096]
[1725896423435,45.0,128.83,128.79,7.7645]
[1725896423732,45.0,128.83,128.78,1.55275805]
[1725896423916,45.0,128.83,128.81,19.4078]
[1725896424713,45.0,128.83,128.78,19.4119]
[1725896424917,7.7631,128.82,128.78,27.1769]
[1725896425213,45.0,128.81,128.78,27.1769]
[1725896425925,7.7645,128.79,128.75,27.1827]
[1725896426130,45.0,128.78,128.75,27.1827]
[1725896427028,45.0,128.78,128.76,7.7662]
[1725896429540,45.0,128.78,128.77,7.7657]
[1725896430740,45.0,128.78,128.76,7.7662]
[1725896432537,45.0,128.78,128.77,7.7657]
[1725896434736,7.7629,128.82,128.78,7.7646]
[1725896434942,35.64766691,128.83,128.79,7.7643]
[1725896434943,43.40986691,128.83,128.79,7.7643]
[1725896435144,7.7628,128.82,128.78,7.7649]
[1725896435434,7.7638,128.81,128.77,27.1786]
[1725896435637,7.7641,128.8,128.77,19.413]
[1725896436229,50.0,128.82,128.77,27.1787]
[1725896436230,7.7636,128.81,128.77,27.1787]
[1725896436427,52.764,128.8,128.77,19.413]
[1725896437135,45.0,128.8,128.77,27.1787]
[1725896437335,45.0,128.8,128.78,7.7651]
[1725896437511,45.0,128.81,128.78,7.7651]
[1725896437713,45.0,128.81,128.77,19.413]
[1725896437935,7.764,128.8,128.77,19.413]
[1725896438143,45.0,128.79,128.77,19.413]
[1725896438314,45.0,128.79,128.77,27.1787]
[1725896438519,15.66,128.83,128.78,7.7651]
[1725896438725,15.66,128.83,128.79,7.7645]
[1725896438726,7.7632,128.82,128.79,7.7645]
[1725896438928,1.35346648,128.82,128.79,7.7645]
[1725896439834,1.35346648,128.82,128.8,7.7638]
[1725896440039,55.14128553,128.83,128.8,1.55261269]
[1725896440040,39.48128553,128.83,128.8,1.55261269]
[1725896440244,9.11524803,128.84,128.8,1.55261269]
[1725896440548,7.7622,128.83,128.79,19.4109]
[1725896440841,7.7627,128.82,128.79,19.4109]
[1725896441347,51.35344803,128.84,128.74,20.13364645]
[1725896441348,52.7634,128.81,128.76,19.4148]
[1725896441549,45.0,128.81,128.76,19.4148]
[1725896442242,45.0,128.81,128.78,7.7651]
[1725896443147,45.0,128.81,128.76,19.4148]
[1725896443148,52.7633,128.81,128.77,7.7655]
[1725896443446,92.24458553,128.81,128.77,7.7655]
[1725896443646,50.0,128.79,128.73,19.4194]
[1725896443945,52.7655,128.78,128.74,7.7675]
[1725896444125,52.7655,128.78,128.73,27.1874]
[1725896444126,7.7658,128.77,128.73,27.1874]
[1725896444320,45.0,128.76,128.73,27.1874]
[1725896444829,45.0,128.76,128.74,7.7675]
[1725896445128,64.98772267,128.77,128.75,7.7669]
[1725896445340,45.0,128.77,128.75,7.7669]
[1725896445542,45.0,128.78,128.75,7.7669]
[1725896445923,45.0,128.78,128.75,27.1842]
[1725896446130,84.48558427,128.79,128.76,7.7663]
[1725896446350,19.98772267,128.78,128.76,7.7663]
[1725896446553,45.0,128.77,128.76,7.7663]
[1725896446847,45.0,128.77,128.72,19.4212]
[1725896447142,84.4891646,128.78,128.72,27.1895]
[1725896447345,7.7665,128.76,128.72,27.1895]
[1725896447648,45.0,128.75,128.72,27.1895]
[1725896448337,45.0,128.75,128.73,7.7679]
[1725896448535,45.0,128.76,128.73,7.7679]
[1725896449133,45.0,128.76,128.73,9.32137351]
[1725896449337,45.0,128.76,128.74,9.3208182]
[1725896449553,64.99206519,128.77,128.74,7.7675]
[1725896449732,45.0,128.77,128.74,7.7675]
[1725896451125,45.0,128.77,128.73,7.7681]
[1725896451323,64.99101451,128.78,128.72,19.4212]
[1725896451528,50.0,128.75,128.69,19.4252]
[1725896451744,45.0,128.74,128.66,19.4299]
[1725896451954,7.7704,128.7,128.66,19.4299]
[1725896452264,45.0,128.69,128.66,27.2023]
[1725896452753,45.0,128.7,128.66,27.2023]
[1725896453060,45.0,128.7,128.67,7.7717]
[1725896454638,45.0,128.7,128.64,7.7732]
[1725896454848,45.0,128.71,128.63,34.5489]
[1725896455041,7.7704,128.7,128.63,34.5489]
[1725896455247,45.0,128.69,128.63,34.5489]
[1725896455563,45.0,128.69,128.66,7.7718]
[1725896455851,45.0,128.69,128.67,19.4288]
[1725896456239,45.0,128.69,128.67,27.2005]
[1725896456561,45.0,128.7,128.67,27.2005]
[1725896457661,45.0,128.7,128.67,19.4288]
[1725896457961,52.7695,128.71,128.67,27.2005]
[1725896460346,7.7707,128.69,128.65,7.7729]
[1725896460646,45.0,128.68,128.65,7.7729]
[1725896460959,45.0,128.69,128.66,7.7724]
[1725896461167,45.0,128.69,128.68,7.7712]
[1725896462649,45.0,128.69,128.67,7.7716]
[1725896464071,1.3544121,128.7,128.68,19.4272]
[1725896464368,7.795,128.84,128.7,19.4244]
[1725896464369,22.652,128.78,128.7,19.4244]
[1725896464544,22.652,128.78,128.74,7.7675]
[1725896464545,1.35379204,128.75,128.74,7.7675]
[1725896464745,22.652,128.78,128.73,7.7681]
[1725896464746,30.4172,128.78,128.73,7.7681]
[1725896464971,1.35366229,128.77,128.73,7.7681]
[1725896465865,7.7671,128.75,128.7,7.7695]
[1725896466164,7.7671,128.75,128.69,19.4257]
[1725896466165,7.7686,128.73,128.69,19.4257]
[1725896466364,7.7671,128.75,128.7,7.7698]
[1725896466569,7.7671,128.75,128.71,7.7691]
[1725896466772,50.0,128.76,128.72,7.7686]
[1725896466773,7.7664,128.76,128.72,7.7686]
[1725896466944,29.11956229,128.77,128.73,7.768]
[1725896467290,9.11956229,128.77,128.73,7.768]
[1725896467474,7.7665,128.76,128.72,7.7687]
[1725896467770,9.11986229,128.77,128.72,7.7687]
[1725896467967,7.7665,128.76,128.72,7.7687]
[1725896468358,45.0,128.75,128.72,7.7687]
[1725896468555,9.11956229,128.77,128.73,7.7681]
[1725896468556,45.0,128.76,128.73,7.7681]
[1725896468967,46.35366229,128.77,128.73,7.7681]
[1725896469851,46.35366229,128.77,128.74,7.7675]
[1725896470255,1.35366229,128.77,128.75,9.32025955]
[1725896470453,1.35366229,128.77,128.76,7.7663]
[1725896470668,7.7641,128.8,128.76,7.7663]
[1725896470859,1.35337662,128.79,128.76,7.7663]
[1725896471056,1.35337662,128.79,128.77,7.7657]
[1725896471375,1.35337662,128.79,128.76,7.7662]
[1725896471556,9.11797662,128.79,128.75,27.1839]
[1725896471758,7.7652,128.78,128.75,19.417]
[1725896472169,9.11807662,128.79,128.75,19.417]
[1725896472376,45.0,128.78,128.75,19.417]
[1725896473075,45.0,128.78,128.74,7.7671]
[1725896473076,45.0,128.78,128.73,7.7679]
[1725896473263,46.35337662,128.79,128.73,7.7679]
[1725896473470,20.0,128.78,128.73,7.7679]
[1725896473664,45.0,128.77,128.73,7.7679]
[1725896473866,45.0,128.77,128.74,7.7675]
[1725896477877,45.0,128.77,128.75,7.7669]
[1725896478470,45.0,128.78,128.75,7.7669]
[1725896478978,45.0,128.78,128.76,7.7661]
[1725896479294,1.35337662,128.79,128.77,7.7657]
[1725896479295,46.35337662,128.79,128.77,7.7657]
[1725896479593,1.35337662,128.79,128.77,7.7657]
[1725896482190,7.7666,128.76,128.72,7.7686]
[1725896482368,45.0,128.75,128.72,27.1904]
[1725896482767,45.0,128.75,128.73,7.7678]
[1725896483176,45.0,128.76,128.73,7.7678]
[1725896483390,52.7664,128.76,128.72,27.1903]
[1725896484074,70.0,128.75,128.69,19.4251]
[1725896484288,7.7685,128.73,128.69,27.1953]
[1725896484465,77.7672,128.75,128.71,7.7693]
[1725896484669,77.7672,128.75,128.72,7.7687]
[1725896484670,45.0,128.74,128.72,7.7687]
[1725896485087,45.0,128.74,128.71,27.1923]
[1725896485586,45.0,128.74,128.72,7.7686]
[1725896485977,45.0,128.74,128.71,27.1923]
[1725896486190,45.0,128.74,128.69,7.77]
[1725896486391,45.0,128.74,128.7,7.7698]
[1725896486700,52.768,128.74,128.7,7.7698]
[1725896487004,7.7682,128.73,128.68,19.4267]
[1725896487304,45.0,128.72,128.7,7.7699]
[1725896487696,45.0,128.73,128.71,7.7693]
[1725896487892,45.0,128.72,128.71,7.7693]
[1725896491006,45.0,128.72,128.7,27.1946]
[1725896491505,45.0,128.72,128.67,19.4281]
[1725896491682,7.7703,128.7,128.66,7.772]
[1725896491886,45.0,128.69,128.64,58.2992]
[1725896492406,45.0,128.7,128.64,58.2992]
[1725896493710,7.7708,128.69,128.65,7.7726]
[1725896493910,45.0,128.68,128.66,7.7724]
[1725896494293,45.0,128.69,128.66,7.7724]
[1725896495295,52.7707,128.69,128.65,7.7729]
[1725896497619,7.7712,128.68,128.64,27.2064]
[1725896497822,45.0,128.67,128.64,27.2064]
[1725896498016,45.0,128.67,128.65,7.773]
[1725896498219,45.0,128.67,128.64,27.2064]
[1725896499707,45.0,128.67,128.65,7.7729]
[1725896499916,45.0,128.68,128.65,7.7729]
[1725896500525,52.7713,128.68,128.64,27.2064]
[1725896500699,7.7718,128.67,128.63,7.7741]
[1725896501022,45.0,128.66,128.63,27.2096]
[1725896501417,45.0,128.66,128.64,7.7736]
[1725896501928,45.0,128.67,128.64,7.7736]
[1725896503506,52.7718,128.67,128.64,7.7736]
[1725896503821,45.0,128.67,128.66,7.7724]
[1725896504022,45.0,128.67,128.65,27.2051]
[1725896504191,45.0,128.68,128.65,27.2051]
[1725896505318,45.0,128.68,128.64,7.7735]
[1725896505823,52.7714,128.68,128.64,7.7735]
[1725896506221,52.7714,128.68,128.64,27.2075]
[1725896506410,45.0,128.68,128.65,7.7729]
[1725896506611,41.91884404,128.68,128.65,7.7729]
[1725896507207,49.69014404,128.68,128.64,27.2074]
[1725896507704,41.91884404,128.68,128.64,19.434]
[1725896507910,73.2572,128.71,128.67,7.7718]
[1725896508113,20.0,128.7,128.68,7.7711]
[1725896508438,7.7688,128.72,128.68,7.7711]
[1725896509313,64.3378,128.73,128.68,7.7711]
[1725896509715,7.7689,128.72,128.68,7.7711]
[1725896510297,45.0,128.71,128.68,7.7711]
[1725896510501,64.3379,128.73,128.69,7.7705]
[1725896510723,20.0,128.72,128.69,7.7705]
[1725896510919,27.7688,128.72,128.68,27.1987]
[1725896511124,27.7688,128.72,128.68,19.4276]
[1725896511509,1.35434762,128.71,128.68,19.4276]
[1725896511717,46.35434762,128.71,128.68,19.4276]
[1725896512705,46.35434762,128.71,128.68,27.1987]
[1725896513024,46.35434762,128.71,128.69,7.7704]
[1725896513231,46.35434762,128.71,128.68,27.1988]
[1725896514227,54.12374762,128.71,128.68,19.4276]
[1725896514804,7.77,128.7,128.66,7.7722]
[1725896515006,96.35434762,128.71,128.65,27.2042]
[1725896515007,102.7711,128.69,128.65,27.2042]
[1725896515234,77.7711,128.69,128.65,27.2042]
[1725896515435,45.0,128.68,128.65,27.2042]
[1725896515828,52.7713,128.68,128.65,19.4314]
[1725896516126,45.0,128.68,128.65,27.2044]
[1725896516504,52.7713,128.68,128.64,7.7735]
[1725896516705,52.7713,128.68,128.62,36.0606]
[1725896516706,7.772,128.67,128.63,7.7738]
[1725896516907,45.0,128.66,128.64,7.7736]
[1725896517418,45.0,128.67,128.64,7.7736]
[1725896518421,45.0,128.67,128.62,36.0606]
[1725896518422,52.7719,128.67,128.63,7.7741]
[1725896519313,52.7719,128.67,128.62,27.2104]
[1725896519520,50.0,128.65,128.6,7.7755]
[1725896519947,7.7743,128.63,128.59,19.4405]
[1725896520231,45.0,128.62,128.59,19.4405]
[1725896520609,45.0,128.62,128.59,27.2167]
[1725896521126,45.0,128.63,128.59,27.2167]
[1725896521308,52.7743,128.63,128.59,27.2167]
[1725896521930,52.7743,128.63,128.59,19.4405]
[1725896522319,7.7748,128.62,128.59,19.4405]
[1725896522641,65.0,128.61,128.56,27.2233]
[1725896522933,7.7773,128.58,128.53,19.4499]
[1725896523241,7.7773,128.58,128.53,27.2297]
[1725896523533,65.0,128.57,128.54,7.7796]
[1725896524139,72.7779,128.57,128.53,19.4499]
[1725896524325,122.778,128.57,128.52,7.7803]
[1725896524648,115.0,128.57,128.54,7.7794]
[1725896525010,122.7779,128.57,128.53,19.45]
[1725896525216,65.0,128.57,128.53,27.2298]
[1725896526533,72.778,128.57,128.53,19.45]
[1725896526732,72.778,128.57,128.53,27.2301]
[1725896527829,65.0,128.57,128.54,7.7795]
[1725896529425,72.7779,128.57,128.53,19.45]
[1725896530137,65.0,128.57,128.53,27.2297]
[1725896530538,65.0,128.57,128.54,7.7795]
[1725896531732,66.35444109,128.57,128.54,7.7795]
[1725896536029,74.13244109,128.57,128.53,27.23]
[1725896536228,7.7784,128.56,128.52,7.7806]
[1725896536432,45.0,128.55,128.52,7.7806]
[1725896536943,45.0,128.55,128.53,7.7802]
[1725896537129,45.0,128.56,128.54,7.7793]
[1725896537751,45.0,128.56,128.53,7.78]
[1725896538861,52.7784,128.56,128.53,7.78]
[1725896539162,52.7784,128.56,128.52,27.2325]
[1725896539649,52.7784,128.56,128.51,7.7812]
[1725896539650,27.7794,128.55,128.51,7.7812]
[1725896539854,27.7794,128.55,128.5,7.7819]
[1725896539855,52.7796,128.54,128.5,7.7819]
[1725896540051,7.7816,128.51,128.46,19.4602]
[1725896540263,7.7816,128.51,128.46,27.2443]
[1725896540483,45.0,128.5,128.45,15.4854]
[1725896540629,7.783,128.49,128.45,7.7847]
[1725896540829,45.0,128.48,128.45,7.7847]
[1725896541441,45.0,128.49,128.45,7.7847]
[1725896541640,52.7828,128.49,128.45,7.7847]
[1725896542046,52.7828,128.49,128.44,7.7856]
[1725896542246,102.7828,128.49,128.44,7.7856]
[1725896542538,102.7828,128.49,128.45,7.785]
[1725896542755,95.0,128.49,128.45,7.785]
[1725896546463,95.0,128.49,128.44,7.7856]
[1725896546464,7.7837,128.48,128.44,7.7856]
[1725896546766,65.0,128.47,128.45,7.7849]
[1725896546967,45.0,128.46,128.45,7.7849]
[1725896547869,45.0,128.46,128.44,7.7855]
[1725896548557,45.0,128.46,128.43,27.2504]
[1725896549245,45.0,128.46,128.43,19.4645]
[1725896549977,52.7845,128.46,128.42,7.7867]
[1725896550144,57.786,128.44,128.41,0.8363624]
[1725896550348,45.0,128.43,128.41,8.6238624]
[1725896550559,45.0,128.43,128.41,0.8363624]
[1725896550747,45.0,128.43,128.41,8.6238624]
[1725896551071,45.0,128.44,128.41,8.6238624]
[1725896552172,1.35423124,128.43,128.41,0.8363624]
[1725896552669,1.35423124,128.43,128.41,8.6234624]
[1725896553257,1.35423124,128.43,128.41,0.8363624]
[1725896554057,21.35423124,128.43,128.41,0.8363624]
[1725896554253,45.0,128.42,128.41,0.8363624]
[1725896556076,45.0,128.42,128.41,8.6238624]
[1725896561974,50.0,128.48,128.41,0.8363624]
[1725896562177,1.35430215,128.47,128.41,0.8363624]
[1725896562466,57.7849,128.46,128.42,7.7868]
[1725896562858,50.0,128.46,128.43,7.7862]
[1725896563061,20.0,128.45,128.43,7.7862]
[1725896563250,45.0,128.44,128.43,7.7862]
[1725896568358,1.35430215,128.47,128.44,19.4633]
[1725896568679,20.0,128.47,128.44,19.4633]
[1725896569364,21.35411351,128.49,128.44,19.4633]
[1725896569563,21.35411351,128.49,128.46,7.7841]
[1725896569764,45.0,128.48,128.47,7.7839]
[1725896570070,45.0,128.48,128.46,27.2452]
[1725896570071,20.0,128.48,128.46,27.2452]
[1725896570462,20.0,128.48,128.47,7.7839]
[1725896570980,20.0,128.48,128.46,19.4608]
[1725896571178,21.35411351,128.49,128.46,19.4608]
[1725896571491,80.7946611,128.49,128.43,19.465]
[1725896571779,45.0,128.48,128.43,19.465]
[1725896571964,20.0,128.47,128.43,19.465]
[1725896572165,45.0,128.46,128.43,19.465]
[1725896572390,45.0,128.46,128.44,7.7856]
[1725896572777,45.0,128.46,128.45,7.7851]
[1725896573079,65.0,128.46,128.45,7.7851]
[1725896573667,45.0,128.46,128.45,7.7851]
[1725896574079,1.35411351,128.49,128.48,7.7833]
[1725896574474,6.3279,128.52,128.48,7.7833]
[1725896574660,15.46266733,128.52,128.48,7.7833]
[1725896575781,15.46266733,128.52,128.49,7.7823]
[1725896575782,20.0,128.51,128.49,7.7823]
[1725896575985,21.35376733,128.52,128.48,19.4581]
[1725896576163,29.13466733,128.52,128.48,19.4581]
[1725896576861,29.13466733,128.52,128.48,27.2409]
[1725896577473,45.0,128.51,128.49,7.7826]
[1725896577690,1.35376733,128.52,128.5,7.7821]
[1725896578671,1.35376733,128.52,128.49,19.4552]
[1725896578865,54.13506733,128.52,128.48,7.7831]
[1725896580662,7.782,128.51,128.47,27.2433]
[1725896580884,72.7824,128.5,128.47,19.4597]
[1725896581170,72.7824,128.5,128.46,7.7842]
[1725896581481,65.0,128.5,128.47,7.7839]
[1725896583087,65.0,128.5,128.48,7.7832]
[1725896583289,1.35376733,128.52,128.49,19.4564]
[1725896583601,15.5017,128.54,128.49,19.4564]
[1725896583894,16.85549704,128.54,128.49,19.4564]
[1725896584265,24.63529704,128.54,128.5,7.782]
[1725896584691,7.7813,128.52,128.47,7.7837]
[1725896584868,65.0,128.51,128.47,7.7837]
[1725896585190,45.0,128.51,128.47,7.7837]
[1725896585491,7.7816,128.51,128.47,7.7837]
[1725896585677,45.0,128.5,128.47,7.7837]
[1725896585879,45.0,128.5,128.46,27.2444]
[1725896586187,45.0,128.5,128.43,15.5727]
[1725896586188,7.784,128.47,128.43,19.4647]
[1725896586494,45.0,128.46,128.44,7.7856]
[1725896586784,45.0,128.46,128.45,7.7851]
[1725896588067,45.0,128.46,128.44,7.7855]
[1725896590593,45.0,128.46,128.43,27.2508]
[1725896590995,45.0,128.46,128.43,19.4647]
[1725896591217,45.0,128.46,128.45,7.7851]
[1725896591495,45.0,128.46,128.44,7.7855]
[1725896591706,7.7858,128.44,128.41,0.8363624]
[1725896591866,45.0,128.43,128.41,0.8363624]
[1725896592069,45.0,128.43,128.42,7.7869]
[1725896593703,7.7835,128.48,128.44,7.7855]
[1725896593994,65.0,128.47,128.44,7.7855]
[1725896594205,72.7841,128.47,128.43,19.4652]
[1725896594690,7.7852,128.45,128.41,8.6234624]
[1725896594876,45.0,128.44,128.41,8.6234624]
[1725896596193,45.0,128.44,128.41,0.8363624]
[1725896596588,52.7858,128.44,128.41,0.8363624]
[1725896598983,20.0,128.43,128.41,0.8363624]
[1725896599192,45.0,128.42,128.41,0.8363624]
[1725896599373,52.7869,128.42,128.41,0.8363624]
[1725896599578,72.7869,128.42,128.41,0.8363624]
[1725896600272,65.0,128.42,128.41,0.8363624]
[1725896603798,45.0,128.42,128.41,0.8363624]
[1725896604386,1.35229315,128.43,128.41,8.6238624]
[1725896604701,21.35229315,128.43,128.41,8.6238624]
[1725896604872,21.35229315,128.43,128.41,0.8363624]
[1725896605490,1.35229315,128.43,128.41,20.3050624]
[1725896605890,1.35229315,128.43,128.41,0.8363624]
[1725896607089,9.13859315,128.43,128.41,0.8363624]
[1725896607397,45.0,128.42,128.41,0.8363624]
[1725896612108,65.0,128.42,128.41,0.8363624]
[1725896612705,89.0533,128.42,128.41,0.8363624]
[1725896614007,81.2664,128.42,128.41,0.8363624]
[1725896614515,89.0533,128.42,128.41,0.8363624]
[1725896615204,81.2664,128.42,128.41,0.8363624]
[1725896616988,65.0,128.42,128.41,0.8363624]
[1725896618195,45.0,128.42,128.41,0.8363624]
[1725896618595,65.0,128.42,128.41,0.8363624]
[1725896618906,45.0,128.42,128.41,0.8363624]
[1725896619302,1.35229315,128.43,128.41,0.8363624]
[1725896619903,1.35229315,128.43,128.41,8.6237624]
[1725896621797,1.35229315,128.43,128.41,0.8363624]
[1725896622818,1.35229315,128.43,128.41,8.6238624]
[1725896624299,1.35229315,128.43,128.41,20.3048624]
[1725896624618,1.35229315,128.43,128.41,28.0921624]
[1725896627922,23.4719,128.5,128.45,7.7847]
[1725896628091,1.35215953,128.48,128.45,7.7847]
[1725896628293,1.35215953,128.48,128.45,27.2473]
[1725896629117,1.35215953,128.48,128.45,27.2475]
[1725896630213,1.35215953,128.48,128.46,7.7844]
[1725896630521,13.8886,128.52,128.47,19.4594]
[1725896630718,1.35184946,128.5,128.47,19.4594]
[1725896630922,1.35184946,128.5,128.48,7.7828]
[1725896631124,7.7802,128.54,128.49,7.7822]
[1725896631493,56.4735,128.55,128.5,7.7818]
[1725896631494,1.35164832,128.52,128.5,7.7818]
[1725896631822,1.35164832,128.52,128.49,19.4561]
[1725896631823,1.35164832,128.52,128.51,7.7814]
[1725896632000,1.35164832,128.52,128.5,7.7819]
[1725896632995,1.35164832,128.52,128.51,7.7814]
[1725896633214,23.9208,128.56,128.51,7.7814]